bitfinex-derivatives/quotes_ETHF0:USTF0_20260303
["timestamp","ask_amount","ask_price","bid_price","bid_amount"]
[1772540154072,1.58348429,1980.1,1979.1,1.89997598]
[1772540154377,1.58348429,1980.1,1979.0,1.90411678]
[1772540154576,0.00414333,1979.6,1979.0,1.90411678]
[1772540154778,1.60665492,1979.7,1979.0,1.90411678]
[1772540154973,1.60665492,1979.7,1979.0,0.0041408]
[1772540155178,1.60251412,1979.4,1978.7,1.89997598]
[1772540155477,1.57183355,1979.4,1978.7,1.89997598]
[1772540155776,1.57183355,1979.4,1978.0,1.89997598]
[1772540156077,1.56293793,1978.9,1978.0,1.90387663]
[1772540156373,1.56867514,1978.9,1978.0,1.90387663]
[1772540156674,1.58340767,1978.8,1978.0,1.90387663]
[1772540157076,1.57926434,1978.7,1978.0,1.90387663]
[1772540158073,0.00414333,1978.5,1978.0,1.90387663]
[1772540158271,1.57926434,1978.7,1978.0,1.90387663]
[1772540158673,0.00414333,1978.6,1978.0,1.90387663]
[1772540158869,1.55927648,1978.6,1978.0,0.00390065]
[1772540159178,0.00414333,1978.2,1977.0,1.89997598]
[1772540159368,1.55537583,1978.3,1977.0,1.89997598]
[1772540159971,1.55537583,1978.3,1977.0,1.90596948]
[1772540160979,1.55951916,1978.3,1977.0,1.90596948]
[1772540161175,1.55537583,1978.3,1977.0,1.90596948]
[1772540161375,1.52876768,1978.1,1977.0,1.90596948]
[1772540161872,1.52876768,1977.5,1977.0,0.0059935]
[1772540162074,1.52876768,1977.5,1976.1,0.25306]
[1772540162075,1.53338178,1977.5,1976.8,1.89997598]
[1772540162475,0.00414333,1977.3,1976.8,1.89997598]
[1772540162778,1.53338178,1977.5,1976.8,1.89997598]
[1772540163176,1.53338178,1977.5,1976.8,1.90354056]
[1772540163376,0.00414333,1977.4,1976.8,1.90354056]
[1772540163778,1.53338178,1977.5,1976.8,1.90354056]
[1772540164080,0.00414333,1977.4,1976.8,1.90354056]
[1772540164274,1.53338178,1977.5,1976.8,1.90354056]
[1772540164480,0.00414333,1977.4,1976.8,1.90354056]
[1772540165180,1.52856109,1977.2,1976.8,0.00356458]
[1772540165377,1.52856109,1977.2,1976.5,1.89997598]
[1772540165681,1.51946719,1977.4,1976.5,1.89997598]
[1772540166179,1.52361052,1977.3,1976.5,1.89997598]
[1772540166380,1.52361052,1977.3,1976.5,1.90535117]
[1772540166682,0.00414333,1977.2,1976.5,1.90535117]
[1772540167675,1.4906319,1977.0,1976.5,0.00537519]
[1772540167879,1.4906319,1977.0,1976.3,1.89997598]
[1772540167880,1.4906319,1977.2,1976.3,1.89997598]
[1772540168682,1.48058638,1977.1,1976.3,1.89997598]
[1772540168876,1.48472971,1976.9,1976.3,1.9048212]
[1772540169283,0.00414333,1976.7,1976.3,1.9048212]
[1772540169780,0.00414333,1976.6,1976.3,1.9048212]
[1772540169975,1.48058638,1976.9,1976.3,1.9048212]
[1772540170481,1.48058638,1976.9,1976.3,0.00484522]
[1772540171279,1.46046089,1976.3,1975.3,1.89997598]
[1772540171681,6.628,1976.4,1975.3,1.89997598]
[1772540172284,8.07989483,1976.4,1975.3,1.90593674]
[1772540173181,1.44077448,1976.3,1975.3,1.90593674]
[1772540173784,0.00414333,1976.3,1975.3,1.90593674]
[1772540173984,1.43190113,1976.7,1975.3,1.90593674]
[1772540174688,1.42128971,1976.9,1975.7,1.89997598]
[1772540174989,1.42543304,1976.9,1975.7,1.89997598]
[1772540175186,1.42128971,1976.9,1975.7,1.89997598]
[1772540175384,6.628,1977.0,1975.7,1.89997598]
[1772540175385,1.42543304,1976.8,1975.7,1.89997598]
[1772540175586,1.42128971,1976.8,1975.7,1.89997598]
[1772540175885,6.628,1977.0,1975.7,1.89997598]
[1772540175886,8.04046649,1977.0,1975.7,1.89997598]
[1772540176386,8.04460982,1977.0,1975.7,1.89997598]
[1772540176582,6.628,1977.0,1975.7,1.89997598]
[1772540177088,1.41768704,1977.2,1975.9,1.89997598]
[1772540177788,0.00414333,1977.1,1975.9,1.89997598]
[1772540178188,1.41768704,1977.2,1975.9,1.89997598]
[1772540178389,1.40462154,1977.1,1975.9,1.89997598]
[1772540178589,1.40047821,1977.1,1975.9,1.89997598]
[1772540178792,0.00414333,1977.0,1975.9,1.89997598]
[1772540179488,1.40931482,1977.3,1976.1,1.62873185]
[1772540179690,1.41345815,1977.3,1976.1,1.62873185]
[1772540179890,1.40931482,1977.3,1976.1,1.62873185]
[1772540180193,0.00414333,1977.1,1976.1,1.62873185]
[1772540180492,1.40662488,1977.1,1976.1,1.62873185]
[1772540180692,1.40248155,1977.0,1976.1,1.62873185]
[1772540180892,1.40248155,1976.8,1975.6,1.62873185]
[1772540181092,0.25296,1976.9,1975.6,1.62873185]
[1772540181093,1.40662488,1976.6,1975.6,1.62873185]
[1772540181295,1.40248155,1976.6,1975.6,1.62873185]
[1772540181694,0.00414333,1976.3,1975.6,1.62873185]
[1772540182094,0.00414333,1976.1,1975.6,1.62873185]
[1772540182291,0.0054459,1976.1,1975.6,1.62873185]
[1772540182695,0.00414333,1976.0,1975.6,1.62873185]
[1772540183094,0.00414333,1975.9,1975.6,1.62873185]
[1772540183295,0.0054459,1976.1,1975.6,1.62873185]
[1772540183695,0.00414333,1975.9,1975.4,1.62873185]
[1772540183894,0.0054459,1976.1,1975.4,1.62873185]
[1772540184093,0.00414333,1975.8,1975.4,1.62873185]
[1772540184494,0.0054459,1976.1,1975.4,1.62873185]
[1772540185498,0.0054459,1976.1,1975.3,0.00596076]
[1772540185499,1.77576015,1976.1,1975.3,0.00596076]
[1772540185700,1.77576015,1976.1,1975.3,1.63469261]
[1772540187096,1.77031425,1976.0,1975.3,0.00596076]
[1772540187296,1.77031425,1976.0,1975.3,1.63469261]
[1772540187901,1.77031425,1976.0,1975.3,0.00596076]
[1772540188100,1.77031425,1975.9,1974.9,1.62873185]
[1772540189200,1.77031425,1975.9,1974.9,1.63393904]
[1772540190300,6.63,1976.0,1974.9,1.63393904]
[1772540190701,8.40031425,1976.0,1974.9,1.63393904]
[1772540190898,1.77031425,1976.0,1974.9,1.63393904]
[1772540195201,1.77031425,1975.8,1974.9,1.63393904]
[1772540195805,1.77031425,1975.4,1974.3,1.62873185]
[1772540196206,1.77031425,1975.6,1974.4,0.25328]
[1772540196407,1.77031425,1975.6,1974.5,1.62873185]
[1772540196804,1.77031425,1976.0,1974.9,1.62873185]
[1772540197004,0.0054459,1976.1,1974.9,1.62873185]
[1772540197407,1.77576015,1976.1,1974.9,1.62873185]
[1772540198815,2.02883015,1976.1,1974.9,1.62873185]
[1772540200015,1.77031425,1975.9,1974.9,1.62873185]
[1772540203425,1.77031425,1975.8,1974.9,1.62873185]
[1772540203615,1.77031425,1975.7,1974.9,1.62873185]
[1772540203919,1.77031425,1975.7,1974.6,1.62873185]
[1772540204621,2.02343425,1975.7,1974.6,1.62873185]
[1772540204816,1.77031425,1975.5,1974.6,1.62873185]
[1772540205523,1.77031425,1975.8,1974.6,1.62873185]
[1772540206123,1.77031425,1975.8,1974.6,8.25973185]
[1772540206322,1.77031425,1975.8,1974.7,1.62873185]
[1772540206821,1.77031425,1976.0,1974.9,1.62873185]
[1772540207929,1.61682116,1975.8,1974.9,1.62873185]
[1772540208219,1.61682116,1976.0,1974.9,1.62873185]
[1772540210221,0.0054459,1976.1,1974.9,1.62873185]
[1772540210618,1.62226706,1976.1,1974.9,1.62873185]
[1772540210824,1.61682116,1975.9,1974.9,1.62873185]
[1772540212322,0.0054459,1976.1,1974.9,1.62873185]
[1772540212523,0.0054459,1976.1,1975.1,1.6715469]
[1772540212925,7.81255836,1976.1,1975.1,1.6715469]
[1772540213120,1.62226706,1976.1,1975.1,1.6715469]
[1772540214626,1.61682116,1975.9,1975.1,1.6715469]
[1772540214826,1.61682116,1975.7,1975.1,1.6715469]
[1772540217631,1.61682116,1976.0,1975.1,1.6715469]
[1772540217834,7.81205872,1975.9,1975.1,1.6715469]
[1772540218028,1.61682116,1975.9,1975.1,1.6715469]
[1772540219028,6.19520952,1975.8,1975.1,1.6715469]
[1772540219227,1.61682116,1975.7,1974.6,1.6715469]
[1772540220334,1.61682116,1975.5,1974.6,1.6715469]
[1772540221232,1.61682116,1975.3,1974.6,1.6715469]
[1772540221626,6.63,1975.4,1974.6,1.6715469]
[1772540221930,8.24682116,1975.4,1974.6,1.6715469]
[1772540222131,1.61682116,1975.3,1974.6,1.6715469]
[1772540223431,8.24682116,1975.4,1974.6,1.6715469]
[1772540224322,1.61682116,1975.3,1974.6,1.6715469]
[1772540225526,1.61682116,1975.3,1974.5,0.00622435]
[1772540225732,1.61682116,1975.3,1974.5,1.67777125]
[1772540225927,1.86999116,1975.3,1974.5,0.00622435]
[1772540226234,1.61682116,1975.1,1974.5,0.00622435]
[1772540229030,1.61682116,1975.1,1974.2,2.50249413]
[1772540229633,1.61682116,1975.1,1974.3,1.6715469]
[1772540230033,1.61682116,1975.1,1974.3,1.67524502]
[1772540232434,1.87002116,1975.1,1974.2,0.83094723]
[1772540232637,1.61682116,1974.9,1974.2,0.83094723]
[1772540232835,1.61682116,1974.7,1974.2,2.50249413]
[1772540233333,1.61682116,1974.7,1974.2,0.83094723]
[1772540233540,1.62336035,1974.7,1974.2,0.83542122]
[1772540233928,1.62336035,1974.7,1974.2,0.69362606]
[1772540234129,1.62336035,1974.7,1973.0,1.6715469]
[1772540234130,1.87660035,1974.7,1973.0,1.6715469]
[1772540234532,1.87660035,1974.7,1973.2,1.6715469]
[1772540234828,1.87660035,1974.7,1973.6,1.6715469]
[1772540234829,1.62336035,1974.7,1973.6,1.6715469]
[1772540235034,1.62336035,1974.7,1973.6,1.67710344]
[1772540235234,1.62336035,1974.7,1973.7,1.6715469]
[1772540239132,1.62336035,1974.7,1973.6,0.00555654]
[1772540239437,1.52326618,1974.5,1973.6,1.47753221]
[1772540239633,1.52326618,1974.3,1973.1,1.47197567]
[1772540239829,1.52326618,1974.1,1973.1,1.47197567]
[1772540240738,1.52326618,1974.1,1973.1,1.47560516]
[1772540242037,0.25328,1974.4,1973.1,1.47560516]
[1772540242038,1.52326618,1974.3,1973.3,1.47197567]
[1772540243138,8.15426618,1974.5,1973.3,1.47197567]
[1772540243334,1.52326618,1974.5,1973.3,1.47197567]
[1772540243840,1.52980537,1974.7,1973.5,1.47197567]
[1772540244236,0.00653919,1974.7,1973.5,1.47197567]
[1772540244538,0.00653919,1974.7,1973.7,1.47197567]
[1772540245936,0.00653919,1974.7,1973.9,1.47197567]
[1772540246138,1.52326618,1975.0,1973.9,1.47197567]
[1772540246837,1.52326618,1975.2,1973.9,1.47197567]
[1772540247036,1.52792521,1975.2,1973.9,1.47197567]
[1772540247238,1.52326618,1975.0,1973.9,1.47197567]
[1772540247742,1.52792521,1975.2,1973.9,1.47197567]
[1772540249441,1.78110521,1975.2,1973.9,1.47197567]
[1772540249841,1.52326618,1975.0,1973.9,1.47197567]
[1772540250235,0.00465903,1975.2,1974.3,1.47197567]
[1772540252138,1.52792521,1975.2,1974.4,1.47197567]
[1772540252738,1.52792521,1975.2,1973.9,1.47197567]
[1772540253040,1.52326618,1975.0,1973.9,1.47197567]
[1772540261249,1.52326618,1975.0,1974.1,1.47197567]
[1772540262151,1.52792521,1975.2,1974.1,1.47197567]
[1772540262547,1.52792521,1975.2,1974.1,1.72528567]
[1772540262744,0.00465903,1975.2,1974.1,1.72528567]
[1772540262946,1.52792521,1975.2,1974.1,1.72528567]
[1772540263154,1.52792521,1975.2,1974.1,1.47197567]
[1772540268349,1.52792521,1975.2,1973.9,6.63]
[1772540268350,1.35723661,1975.0,1973.9,1.40473072]
[1772540268555,1.35723661,1974.8,1973.9,1.40473072]
[1772540269855,1.35723661,1974.6,1973.4,1.40473072]
[1772540270057,0.25324,1974.7,1973.4,1.40473072]
[1772540270058,1.35723661,1974.4,1973.4,1.40473072]
[1772540271355,12.7173995,1974.9,1973.6,1.40473072]
[1772540271356,1.35723661,1974.7,1973.6,1.40473072]
[1772540272155,1.35723661,1974.7,1973.7,1.40473072]
[1772540273255,1.35723661,1974.7,1973.8,1.40473072]
[1772540273857,7.98723661,1974.9,1973.8,1.40473072]
[1772540274052,0.05,1975.0,1973.8,1.65808072]
[1772540274253,0.05,1975.0,1973.8,4.02961231]
[1772540274454,0.05,1975.0,1973.9,1.40473072]
[1772540274650,1.40723661,1975.0,1973.9,1.40473072]
[1772540275359,1.40723661,1975.0,1974.0,1.40473072]
[1772540277561,0.05,1975.0,1974.0,1.40473072]
[1772540277751,1.40723661,1975.0,1974.0,1.40473072]
[1772540278152,1.40723661,1975.0,1974.2,1.40473072]
[1772540280061,0.05,1975.0,1974.2,1.40473072]
[1772540281358,0.05,1975.0,1974.3,6.631]
[1772540281564,0.05,1975.0,1974.4,1.40473072]
[1772540282063,4.23320824,1975.7,1974.7,1.40473072]
[1772540282263,1.35723661,1976.2,1975.2,1.40473072]
[1772540282568,1.35723661,1975.8,1974.8,1.40473072]
[1772540282768,1.35723661,1975.7,1974.5,1.40473072]
[1772540282969,1.35723661,1975.5,1974.5,1.40473072]
[1772540283163,1.35723661,1975.5,1974.5,0.0036953]
[1772540283164,1.35723661,1975.3,1974.5,0.0036953]
[1772540283666,7.98823661,1975.3,1974.5,0.0036953]
[1772540283866,1.35723661,1975.1,1974.5,0.0036953]
[1772540286372,1.35723661,1975.1,1974.5,1.40842602]
[1772540286669,1.35723661,1975.1,1974.5,0.0036953]
[1772540289170,1.35723661,1975.1,1974.2,1.40473072]
[1772540290072,1.35723661,1975.4,1974.2,1.4083471]
[1772540290467,0.0038549,1975.5,1974.4,1.40473072]
[1772540290664,0.0038549,1975.5,1974.3,2.37153159]
[1772540290665,0.0038549,1975.5,1974.6,1.40473072]
[1772540291068,1.35723661,1976.0,1974.7,1.40473072]
[1772540291273,1.35723661,1976.0,1974.9,1.40473072]
[1772540291973,1.36271413,1976.0,1974.9,1.40473072]
[1772540292372,0.00547752,1976.0,1975.1,1.40473072]
[1772540293170,0.00547752,1976.0,1975.2,1.40473072]
[1772540293770,1.35723661,1976.5,1975.3,0.25316]
[1772540293970,1.35723661,1977.1,1975.7,1.65784072]
[1772540294168,1.35723661,1977.1,1975.9,1.40473072]
[1772540294979,1.36253405,1977.1,1975.9,1.41034891]
[1772540296073,1.36253405,1977.1,1976.0,1.40473072]
[1772540296371,1.35723661,1977.5,1976.3,1.40473072]
[1772540296568,1.35723661,1977.5,1976.5,1.40473072]
[1772540296774,1.35723661,1977.7,1976.5,1.40473072]
[1772540297378,1.35723661,1977.7,1976.5,3.77626231]
[1772540297574,1.3636044,1977.7,1976.6,1.40473072]
[1772540297772,0.00636779,1977.7,1976.6,1.40473072]
[1772540298674,1.31143535,1977.7,1976.8,1.3422922]
[1772540298881,1.31673279,1977.7,1976.9,1.3422922]
[1772540299071,0.00636779,1977.7,1976.9,1.3422922]
[1772540299782,1.25738714,1977.7,1976.9,1.3422922]
[1772540300269,0.00636779,1977.7,1976.9,1.3422922]
[1772540300671,0.00636779,1977.7,1977.1,1.28381452]
[1772540300876,1.25738714,1977.7,1977.1,1.28381452]
[1772540301081,0.00636779,1977.7,1977.1,1.28381452]
[1772540301583,1.25738714,1977.7,1977.1,1.28381452]
[1772540301780,0.00636779,1977.7,1977.1,1.28381452]
[1772540301981,0.01166523,1977.7,1977.1,1.28381452]
[1772540302182,0.00636779,1977.7,1977.1,1.28381452]
[1772540302576,1.25101935,1977.6,1976.3,1.28381452]
[1772540302777,1.25101935,1977.6,1976.5,1.28381452]
[1772540302978,0.00636779,1977.7,1976.5,1.28381452]
[1772540303783,1.25738714,1977.7,1976.5,1.28381452]
[1772540304777,0.00636779,1977.7,1976.6,1.28381452]
[1772540305176,0.00636779,1977.7,1976.9,1.28381452]
[1772540305382,0.00636779,1977.7,1977.1,1.28381452]
[1772540307083,0.01166523,1977.7,1977.3,1.28381452]
[1772540307283,0.00636779,1977.7,1977.3,1.28937645]
[1772540307581,0.00529744,1977.6,1977.3,1.28937645]
[1772540307784,0.00636779,1977.7,1977.3,1.28937645]
[1772540308183,0.00529744,1977.6,1977.3,1.28937645]
[1772540308581,1.25101935,1977.5,1977.3,0.00556193]
[1772540308783,1.25101935,1977.5,1976.9,7.91181452]
[1772540309185,0.00529744,1977.4,1977.0,1.28381452]
[1772540309786,1.25738714,1977.7,1977.0,1.28883457]
[1772540310878,0.00636779,1977.7,1977.0,1.28883457]
[1772540311083,1.25101935,1977.6,1977.0,1.28883457]
[1772540311487,1.25101935,1977.6,1976.6,7.91181452]
[1772540311681,1.25101935,1977.6,1976.6,1.28381452]
[1772540312486,1.25101935,1977.6,1976.6,1.28948338]
[1772540313388,1.50389935,1977.6,1976.6,0.00566886]
[1772540313782,1.50392935,1977.3,1976.3,1.28381452]
[1772540314489,1.50392935,1977.3,1976.1,1.28381452]
[1772540314684,1.25101935,1977.3,1976.1,1.28381452]
[1772540314886,1.25101935,1977.5,1976.1,1.28872491]
[1772540315093,1.25101935,1977.5,1976.3,1.28381452]
[1772540315290,1.25738714,1977.7,1976.3,1.53684452]
[1772540315598,1.25738714,1977.7,1976.6,1.28381452]
[1772540315889,1.25738714,1977.7,1976.5,2.37153159]
[1772540315890,1.25738714,1977.7,1976.8,1.28381452]
[1772540316996,1.25738714,1977.7,1977.0,1.28381452]
[1772540317199,1.25101935,1977.6,1976.7,6.628]
[1772540317399,1.50389935,1977.6,1976.6,1.28381452]
[1772540317899,1.25101935,1977.3,1976.4,1.28381452]
[1772540318193,1.25101935,1977.1,1976.2,1.28381452]
[1772540318394,1.25101935,1976.9,1976.1,0.00491039]
[1772540318695,1.25101935,1976.7,1975.8,1.28381452]
[1772540319796,1.25101935,1976.7,1975.8,1.28895501]
[1772540322494,1.25101935,1976.7,1975.9,1.28381452]
[1772540323594,1.21591025,1977.1,1975.9,1.28381452]
[1772540325191,1.20188738,1977.3,1976.1,1.28381452]
[1772540326299,1.20188738,1977.3,1976.3,1.28381452]
[1772540327703,1.20188738,1977.3,1976.1,1.26475583]
[1772540328397,1.17042773,1977.1,1976.1,1.26475583]
[1772540328800,1.16464301,1976.9,1976.1,1.26475583]
[1772540329199,1.16464301,1976.9,1975.9,1.26475583]
[1772540330401,6.09150816,1976.8,1975.9,1.26475583]
[1772540330599,1.12487486,1976.7,1975.8,0.00514049]
[1772540331205,1.12487486,1976.7,1975.8,1.26989632]
[1772540333905,1.08750887,1977.3,1976.0,1.26475583]
[1772540334115,1.08750887,1977.3,1976.2,1.26475583]
[1772540336507,1.08750887,1977.3,1976.4,1.26475583]
[1772540340213,1.0380347,1977.1,1976.2,1.26475583]
[1772540342513,0.99037887,1976.9,1975.9,1.26475583]
[1772540342913,0.99037887,1976.9,1976.0,1.26475583]
[1772540343321,0.25295,1977.0,1976.0,1.26475583]
[1772540343611,7.34055673,1977.0,1976.0,1.26475583]
[1772540343915,1.2355135,1977.0,1976.0,1.26475583]
[1772540344106,0.9825635,1976.9,1976.2,1.26475583]
[1772540344714,0.9825635,1976.9,1975.8,0.00514049]
[1772540344914,0.9825635,1976.9,1976.0,1.26475583]
[1772540345915,0.9825635,1976.9,1976.1,1.26475583]
[1772540347115,0.97733583,1977.2,1976.1,1.26475583]
[1772540347418,0.97008916,1977.0,1976.1,1.26475583]
[1772540352910,0.95656501,1976.8,1976.1,1.26475583]
[1772540353521,0.95656501,1976.8,1975.8,1.26989632]
[1772540353722,0.94901953,1976.5,1975.8,0.00514049]
[1772540353921,0.94901953,1976.3,1975.8,1.26989632]
[1772540354122,0.00447773,1976.3,1975.8,1.26989632]
[1772540354322,0.95349726,1976.3,1975.8,1.26989632]
[1772540354523,0.00447773,1976.3,1975.8,1.26989632]
[1772540355925,0.92965035,1976.3,1975.8,1.26989632]
[1772540357121,0.92965035,1976.3,1975.8,0.00514049]
[1772540357419,0.91132504,1976.1,1975.4,1.26475583]
[1772540358325,0.91132504,1976.1,1975.4,1.27075623]
[1772540366831,0.91132504,1976.1,1975.4,0.0060004]
[1772540367934,0.79430653,1975.9,1974.9,1.05021002]
[1772540369134,0.79430653,1975.9,1974.9,1.05463108]
[1772540373638,0.75500558,1975.7,1974.9,1.05463108]
[1772540374235,0.75500558,1975.5,1974.9,0.00442106]
[1772540374934,0.75500558,1975.5,1974.7,1.05021002]
[1772540375939,0.75500558,1975.5,1974.7,1.05468188]
[1772540384245,0.70720064,1975.9,1974.7,1.05468188]
[1772540384542,6.632,1976.0,1974.7,1.05468188]
[1772540384740,7.32407092,1976.0,1974.7,1.05468188]
[1772540385242,0.25305,1976.2,1974.9,1.05021002]
[1772540385243,0.69207092,1976.2,1974.9,1.05021002]
[1772540388352,0.00447773,1976.3,1975.1,1.02300973]
[1772540388547,0.00447773,1976.3,1975.0,0.2532]
[1772540388548,0.6710614,1976.3,1975.3,1.02300973]
[1772540390055,0.65928892,1976.0,1974.8,1.02300973]
[1772540390951,0.65439577,1975.8,1974.8,1.02300973]
[1772540391152,0.65439577,1975.6,1974.8,1.02300973]
[1772540395262,6.11397778,1975.5,1974.8,1.02300973]
[1772540395464,0.70760778,1975.4,1974.8,1.02300973]
[1772540395761,0.70760778,1975.4,1974.7,1.02748159]
[1772540395962,0.70760778,1975.4,1974.7,0.00447186]
[1772540396563,0.70760778,1975.4,1974.7,1.02748159]
[1772540398359,0.68448778,1975.2,1974.7,1.02748159]
[1772540400064,0.68448778,1975.2,1974.7,0.00447186]
[1772540400260,0.68448778,1975.2,1973.9,0.25334]
[1772540400261,0.68448778,1975.2,1974.4,1.02300973]
[1772540400567,0.655006,1975.0,1974.2,1.02300973]
[1772540400963,0.655006,1974.9,1974.2,1.02300973]
[1772540401159,0.66057198,1974.9,1974.2,1.02859924]
[1772540401364,0.91379198,1974.9,1973.9,1.02300973]
[1772540401663,0.6479785,1974.6,1973.9,1.02300973]
[1772540401863,0.6479785,1974.4,1973.3,1.02300973]
[1772540402266,0.6479785,1974.2,1973.3,1.02300973]
[1772540402466,0.6479785,1974.2,1973.3,1.02708397]
[1772540404564,2.99704347,1974.4,1973.3,1.02708397]
[1772540404770,0.62811269,1974.4,1973.3,1.02708397]
[1772540405166,0.62811269,1974.6,1973.3,1.02708397]
[1772540406568,0.60937017,1974.4,1973.3,1.02708397]
[1772540410069,0.60937017,1974.4,1973.3,7.66008397]
[1772540410271,0.60025595,1974.7,1973.4,1.02300973]
[1772540411866,0.58793355,1974.4,1973.4,1.02300973]
[1772540415172,0.56861502,1974.2,1973.3,0.00407424]
[1772540415377,0.56861502,1974.2,1973.3,1.02708397]
[1772540415576,0.25329,1974.3,1973.0,0.05]
[1772540415577,0.55800266,1973.6,1973.0,0.05]
[1772540415773,0.55800266,1973.6,1972.6,1.02300973]
[1772540415774,0.50800266,1973.5,1972.6,1.02300973]
[1772540416574,0.51228477,1973.5,1972.6,1.02951737]
[1772540418478,0.51043875,1973.2,1972.6,0.00650764]
[1772540419283,0.51043875,1973.2,1972.4,0.95264948]
[1772540420282,0.50229591,1973.4,1972.4,0.95801049]
[1772540421585,0.50229591,1973.4,1972.4,0.95240358]
[1772540422381,0.48924876,1973.2,1972.4,0.95240358]
[1772540423183,0.47318436,1972.8,1971.9,0.96665644]
[1772540423787,0.25347,1972.9,1971.9,0.96665644]
[1772540424085,0.46737593,1973.0,1971.9,0.9702343]
[1772540424885,0.45423654,1973.9,1972.4,0.96665644]
[1772540425288,0.45423654,1973.6,1972.4,0.96665644]
[1772540425488,0.25339,1973.5,1972.4,0.96665644]
[1772540425684,0.44843227,1973.4,1972.4,0.96665644]
[1772540425890,0.45204284,1973.4,1972.4,0.96665644]
[1772540426089,0.00428211,1973.3,1972.4,0.96665644]
[1772540426585,0.00361057,1973.4,1972.4,0.96665644]
[1772540427291,0.42964856,1974.2,1972.4,0.96665644]
[1772540427493,0.42440037,1973.7,1972.4,0.96665644]
[1772540427891,0.42389309,1973.5,1972.4,0.96665644]
[1772540428289,0.42389309,1973.3,1972.4,0.96665644]
[1772540428487,0.00428211,1973.4,1972.4,0.96665644]
[1772540429694,0.40370189,1973.4,1972.4,0.96665644]
[1772540430993,0.00428211,1973.4,1972.4,0.96665644]
[1772540431689,0.40027266,1973.4,1972.4,0.96665644]
[1772540432194,0.00428211,1973.4,1972.4,0.96665644]
[1772540434692,0.37678287,1973.4,1972.4,0.96665644]
[1772540436892,0.00428211,1973.4,1972.4,0.96665644]
[1772540437497,0.00483288,1973.5,1972.4,0.96665644]
[1772540437697,0.00911499,1973.5,1972.4,0.96665644]
[1772540437901,6.11034923,1974.0,1972.6,0.96665644]
[1772540438102,0.3655482,1974.5,1973.0,0.96665644]
[1772540438400,0.3655482,1974.5,1973.2,0.96665644]
[1772540439088,0.37082002,1974.5,1973.2,0.96665644]
[1772540439898,0.60705282,1974.4,1973.2,0.96665644]
[1772540440098,0.35377282,1974.2,1973.2,0.96665644]
[1772540440300,0.35377282,1974.1,1973.2,0.96665644]
[1772540443400,0.33078113,1974.0,1973.2,0.96665644]
[1772540443797,6.11903356,1974.1,1973.2,0.96665644]
[1772540444100,6.95821003,1974.2,1973.2,0.96665644]
[1772540445904,0.30410539,1974.3,1973.2,0.96665644]
[1772540446800,0.25328,1974.4,1973.2,0.96665644]
[1772540447202,0.55515151,1974.4,1973.2,0.96665644]
[1772540447504,0.30072811,1974.3,1973.2,0.96665644]
[1772540449003,0.30062389,1973.9,1973.2,0.96665644]
[1772540450112,0.29953283,1973.8,1973.2,0.96665644]
[1772540450801,0.29953283,1973.8,1972.5,0.25351]
[1772540451008,0.29953283,1973.8,1973.0,0.82884493]
[1772540451606,0.29051908,1973.6,1972.1,0.82884493]
[1772540452898,0.29051908,1973.6,1972.3,0.82884493]
[1772540453297,0.28770516,1973.9,1972.3,0.82884493]
[1772540453502,0.28674287,1973.8,1972.3,0.82884493]
[1772540454903,0.28271436,1973.7,1972.3,0.82884493]
[1772540455607,6.40565419,1973.9,1972.5,0.82884493]
[1772540456412,6.40565419,1973.9,1972.7,0.82884493]
[1772540456812,7.17024811,1974.0,1972.7,0.82884493]
[1772540457508,0.53824811,1974.0,1972.7,0.82884493]
[1772540457909,0.28393611,1973.9,1972.7,0.82884493]
[1772540458613,0.28063667,1973.9,1972.7,0.82884493]
[1772540459309,0.25333,1974.0,1972.7,0.82884493]
[1772540459618,0.27966668,1974.2,1972.9,0.82884493]
[1772540460117,0.27966668,1974.2,1973.0,0.82884493]
[1772540460413,0.27966668,1974.1,1973.0,0.82884493]
[1772540460709,7.17456021,1974.5,1973.2,0.82884493]
[1772540460912,6.92128021,1974.5,1973.2,0.82884493]
[1772540461212,0.28828021,1974.5,1973.2,0.82884493]
[1772540462012,0.28206012,1974.3,1973.2,0.82884493]
[1772540462315,0.28206012,1973.9,1972.5,0.82884493]
[1772540462917,0.27857039,1973.8,1972.5,0.82884493]
[1772540463113,0.27857039,1973.7,1972.5,0.82884493]
[1772540464115,0.27857039,1973.7,1972.6,0.82884493]
[1772540464311,0.2776484,1973.9,1972.6,0.82884493]
[1772540464916,0.2776484,1973.9,1972.8,0.82884493]
[1772540465125,0.2663086,1974.3,1973.0,0.82884493]
[1772540465617,0.2663086,1974.3,1973.2,0.82884493]
[1772540467218,0.2640326,1974.2,1973.2,0.82884493]
[1772540467514,0.26321795,1974.1,1973.2,0.82884493]
[1772540467718,0.26315938,1974.3,1973.2,0.82884493]
[1772540468216,0.26315938,1974.2,1973.2,0.82884493]
[1772540468415,0.26315938,1974.1,1973.2,0.82884493]
[1772540470716,0.25406311,1974.3,1973.2,0.82884493]
[1772540475223,4.49777369,1974.5,1973.2,0.82884493]
[1772540475224,0.22001454,1974.1,1973.2,0.82884493]
[1772540475532,0.21927236,1974.0,1973.2,0.82884493]
[1772540479228,6.85785698,1974.2,1973.2,0.82884493]
[1772540481125,0.22451516,1974.4,1973.2,0.82884493]
[1772540481329,6.39284766,1974.4,1973.2,0.82884493]
[1772540482125,0.22379324,1974.3,1973.2,0.82884493]
[1772540483630,6.4216225,1974.4,1973.2,0.82884493]
[1772540483631,6.1683325,1974.4,1973.2,0.82884493]
[1772540483831,0.00527182,1974.5,1973.6,0.8828285]
[1772540484030,0.00527182,1974.5,1973.6,0.88864669]
[1772540484431,0.22726361,1975.0,1973.6,0.88864669]
[1772540484632,0.22726361,1975.0,1973.7,0.8828285]
[1772540485431,0.23312934,1975.0,1973.7,0.8828285]
[1772540486027,0.00586573,1975.0,1973.7,0.8828285]
[1772540486425,0.00586573,1975.0,1973.9,0.8828285]
[1772540486832,0.00586573,1975.0,1974.1,0.8828285]
[1772540487031,0.2191205,1975.4,1974.1,0.8828285]
[1772540487232,0.22498623,1975.6,1974.3,0.8828285]
[1772540487532,0.22434426,1975.7,1974.5,0.8828285]
[1772540487929,0.23006741,1975.7,1974.5,0.8828285]
[1772540490136,0.00572315,1975.7,1974.5,0.8828285]
[1772540490336,0.22832621,1975.7,1974.5,0.8828285]
[1772540490838,0.20345536,1975.5,1974.5,0.8828285]
[1772540491338,0.20284324,1975.3,1974.5,0.8828285]
[1772540491539,0.20281766,1975.1,1974.5,0.8828285]
[1772540491740,0.20281766,1975.1,1973.9,0.8828285]
[1772540492639,0.2028114,1974.9,1973.9,0.8828285]
[1772540492935,0.2028114,1974.7,1973.9,0.8828285]
[1772540493142,0.2028114,1974.5,1973.6,0.88864669]
[1772540498448,0.19840821,1974.3,1973.6,0.88864669]
[1772540498647,0.20434769,1974.3,1973.6,0.88864669]
[1772540499838,0.00593948,1974.3,1973.6,0.88864669]
[1772540500746,0.20221327,1974.3,1973.6,0.88864669]
[1772540501246,0.00593948,1974.3,1973.6,0.88864669]
[1772540501449,6.632,1974.6,1973.6,0.88864669]
[1772540502549,6.63815375,1974.6,1973.6,0.88864669]
[1772540503549,6.83686829,1974.6,1973.6,0.88864669]